fUSD/lending_fUSD_20260627
["ID","MTS","AMOUNT","RATE_DAILY","PERIOD"]
[426528551,1782540641000,-300.0,0.00030466,10]
[426528558,1782540641000,-160.04075914,0.0003065,30]
[426528557,1782540641000,-3527.0430939,0.00030467,2]
[426528553,1782540641000,-4870.2731926,0.00030467,2]
[426528552,1782540641000,-7377.4142002,0.00030467,2]
[426528554,1782540641000,-3034.6269059,0.00030467,2]
[426528548,1782540641000,-251.0,0.0003036,2]
[426528556,1782540641000,-26698.0841821,0.00030467,2]
[426528550,1782540641000,-300.0,0.00030466,10]
[426528562,1782540641000,-239.61,0.00031084,3]
[426528559,1782540641000,-162.0,0.00030657,30]
[426528563,1782540641000,-634.87201723,0.00031448,2]
[426528561,1782540641000,-1000.0,0.00031,7]
[426528560,1782540641000,-2875.56947875,0.00030768,2]
[426528568,1782540641000,-23141.0,0.00031914,20]
[426528587,1782540641000,-779.0,0.00034099,5]
[426528565,1782540641000,-519.3,0.00031712,30]
[426528588,1782540641000,-501.0,0.00034315,2]
[426528612,1782540641000,-248.68639573,0.000353,30]
[426528611,1782540641000,-248.68639573,0.000353,30]
[426528615,1782540641000,-300.0,0.00035353,10]
[426528616,1782540641000,-300.0,0.00035353,10]
[426528617,1782540641000,-167296.4192,0.00035354,2]
[426528614,1782540641000,-5800.0,0.00035348,2]
[426528613,1782540641000,-5800.0,0.00035339,2]
[426528618,1782540641000,-5800.0,0.00035356,2]
[426528621,1782540641000,-738.06779093,0.00035394,2]
[426528620,1782540641000,-5800.0,0.00035373,2]
[426528622,1782540641000,-160.36,0.00035427,30]
[426528623,1782540641000,-154.87,0.00035432,30]
[426528624,1782540641000,-185.55,0.00035433,2]
[426528625,1782540641000,-185.38,0.00035433,2]
[426528629,1782540641000,-959.37255751,0.00035455,90]
[426528627,1782540641000,-11375.36536932,0.00035455,90]
[426528626,1782540641000,-170.0,0.00035436,7]
[426528628,1782540641000,-600.61772343,0.00035455,90]
[426528610,1782540641000,-248.68639575,0.000353,30]
[426528619,1782540641000,-5800.0,0.00035365,2]
[426528608,1782540641000,-23141.0,0.00035071,20]
[426528609,1782540641000,-166.41,0.0003528,30]
[426528589,1782540641000,-4783.37667718,0.00034349,2]
[426528591,1782540641000,-9028.0,0.00034478,5]
[426528593,1782540641000,-3312.66800236,0.00034571,2]
[426528592,1782540641000,-9063.0,0.00034478,5]
[426528594,1782540641000,-300.0,0.00034679,10]
[426528595,1782540641000,-300.0,0.00034679,10]
[426528596,1782540641000,-77066.02174949,0.0003468,30]
[426528598,1782540641000,-167.79081425,0.000349,120]
[426528590,1782540641000,-1500.0,0.000344,7]
[426528599,1782540641000,-192.27096766,0.000349,120]
[426528597,1782540641000,-38223.64334528,0.0003488,120]
[426528600,1782540641000,-3200.0,0.000349,12]
[426528602,1782540641000,-501.0,0.00034997,2]
[426528601,1782540641000,-4782.0,0.00034914,10]
[426528604,1782540641000,-156.30840754,0.00035,120]
[426528605,1782540641000,-186.82983972,0.00035,120]
[426528603,1782540641000,-3249.999999,0.00035,30]
[426528607,1782540641000,-8738.56358873,0.00035,30]
[426528606,1782540641000,-252.66811975,0.00035,60]
[426528637,1782540642000,-6455.2967476,0.00035455,90]
[426528638,1782540642000,-2999.3326799,0.00035455,90]
[426528647,1782540646000,-178.83543943,0.00035433,2]
[426528644,1782540646000,-200.09406443,0.00030136,2]
[426528646,1782540646000,-154.87,0.00035432,30]
[426528648,1782540646000,-78.40456057,0.00035433,2]
[426528649,1782540646000,-2669.44306301,0.00035455,90]
[426528650,1782540646000,-17822.56283933,0.00035455,90]
[426528643,1782540646000,-192.93,0.00024658,2]
[426528651,1782540646000,-9484.08779731,0.00035455,90]
[426528652,1782540646000,-1852.94917724,0.00035455,90]
[426528655,1782540646000,-1247.43739476,0.00035455,90]
[426528657,1782540646000,-151.53,0.000355,7]
[426528654,1782540646000,-410.19251665,0.00035455,90]
[426528656,1782540646000,-17856.88248852,0.00035455,90]
[426528658,1782540646000,-573.97,0.00035568,2]
[426528660,1782540646000,-3000.0,0.00035616,2]
[426528659,1782540646000,-3000.0,0.00035616,2]
[426528662,1782540646000,-3000.0,0.00035616,2]
[426528664,1782540646000,-3000.0,0.00035616,2]
[426528665,1782540646000,-3000.0,0.00035616,2]
[426528667,1782540646000,-1822.49447248,0.00035616,2]
[426528653,1782540646000,-684.78,0.00035455,90]
[426528666,1782540646000,-244.23000732,0.00035616,2]
[426528671,1782540661000,195.0,0.00017826,120]
[426528672,1782540681000,538.326255,0.00037315,120]
[426528673,1782541014000,410.945,0.00037315,120]
[426528674,1782541106000,151.5296704,0.00037298,120]
[426528676,1782541227000,2014.63254045,0.00037298,120]
[426528677,1782541340000,153.5154466,0.00037298,120]
[426528695,1782541831000,-500.0,0.00013554,2]
[426528694,1782541831000,-500.0,0.00013554,2]
[426528693,1782541831000,-481.58075979,0.00013554,2]
[426528692,1782541831000,-500.0,0.00013554,2]
[426528691,1782541831000,-280.20271131,0.00013516,2]
[426528690,1782541831000,-198.13495648,0.00013516,2]
[426528689,1782541831000,-173.84725224,0.00013488,2]
[426528688,1782541831000,-346.37259288,0.00012755,2]
[426528744,1782541832000,-151.0,0.00021199,2]
[426528736,1782541832000,-151.0,0.00021199,2]
[426528770,1782541832000,-1902.38242282,0.000224,2]
[426528742,1782541832000,-151.0,0.00021199,2]
[426528740,1782541832000,-151.0,0.00021199,2]
[426528746,1782541832000,-151.0,0.00021199,2]
[426528732,1782541832000,-151.0,0.00021199,2]
[426528738,1782541832000,-151.0,0.00021199,2]
[426528752,1782541832000,-151.0,0.00021199,2]
[426528748,1782541832000,-151.0,0.00021199,2]
[426528750,1782541832000,-151.0,0.00021199,2]
[426528754,1782541832000,-151.0,0.00021199,2]
[426528760,1782541832000,-37.85363803,0.00021199,2]
[426528764,1782541832000,-779.3466439,0.00022,2]
[426528755,1782541832000,-151.0,0.00021199,2]
[426528759,1782541832000,-116.91096065,0.00021199,2]
[426528730,1782541832000,-405.0,0.00021198,2]
[426528761,1782541832000,-441.22014262,0.00021382,2]
[426528762,1782541832000,-37.11752509,0.00021382,2]
[426528757,1782541832000,-151.0,0.00021199,2]
[426528763,1782541832000,-856.56180927,0.00022,2]
[426528765,1782541832000,-627.48671152,0.00022,2]
[426528766,1782541832000,-1902.38242282,0.000221,2]
[426528767,1782541832000,-215.68,0.000221,2]
[426528773,1782541832000,-1902.38242282,0.000228,2]
[426528774,1782541832000,-1902.38242282,0.00023,2]
[426528758,1782541832000,-151.0,0.00021199,2]
[426528734,1782541832000,-151.0,0.00021199,2]
[426528714,1782541832000,-500.0,0.00014397,2]
[426528725,1782541832000,-463.91293336,0.00017558,2]
[426528697,1782541832000,-500.0,0.00013554,2]
[426528696,1782541832000,-500.0,0.00013554,2]
[426528698,1782541832000,-500.0,0.00013554,2]
[426528699,1782541832000,-500.0,0.00013554,2]
[426528702,1782541832000,-500.0,0.00013554,2]
[426528701,1782541832000,-500.0,0.00013554,2]
[426528700,1782541832000,-500.0,0.00013554,2]
[426528703,1782541832000,-446.47083691,0.00013554,2]
[426528707,1782541832000,-500.0,0.00013698,2]
[426528706,1782541832000,-500.0,0.00013698,2]
[426528704,1782541832000,-500.0,0.00013698,2]
[426528710,1782541832000,-160.0,0.00013745,2]
[426528727,1782541832000,-478.33766771,0.0001876,2]
[426528711,1782541832000,-325.26085163,0.00013865,2]
[426528705,1782541832000,-500.0,0.00013698,2]
[426528708,1782541832000,-500.0,0.00013698,2]
[426528712,1782541832000,-463.91293336,0.00014297,2]
[426528713,1782541832000,-500.0,0.00014397,2]
[426528717,1782541832000,-0.79334175,0.00015338,2]
[426528719,1782541832000,-0.66997979,0.00016138,2]
[426528715,1782541832000,-1.701807,0.00014999,2]
[426528718,1782541832000,-492.18473878,0.00015338,2]
[426528716,1782541832000,-498.298193,0.00014999,2]
[426528721,1782541832000,-477.66768792,0.00016138,2]
[426528724,1782541832000,-250.36603088,0.00016854,2]
[426528729,1782541832000,-463.91293336,0.00020819,2]
[426528709,1782541832000,-500.0,0.00013698,2]
[426528771,1782541832000,-215.68,0.000224,2]
[426528793,1782541832000,-150.0,0.00025424,2]
[426528768,1782541832000,-211.91966717,0.000221,2]
[426528806,1782541832000,-204.84,0.00026591,2]
[426528813,1782541832000,-7252.65,0.00027397,10]
[426528807,1782541832000,-5230.49,0.00026591,2]
[426528810,1782541832000,-478.33766771,0.00026627,2]
[426528814,1782541832000,-6043.87,0.00027397,10]
[426528812,1782541832000,-463.91293336,0.00027342,2]
[426528809,1782541832000,-19520.46,0.00026591,10]
[426528811,1782541832000,-2263.39516467,0.00027038,2]
[426528808,1782541832000,-4728.34,0.00026591,2]
[426528816,1782541832000,-500.0,0.000275,7]
[426528815,1782541832000,-402.0,0.00027452,2]
[426528818,1782541832000,-287.72846478,0.00028069,14]
[426528805,1782541832000,-9999.99,0.00026591,2]
[426528817,1782541832000,-168.21,0.0002769,2]
[426528819,1782541832000,-430.42457541,0.00028069,14]
[426528821,1782541832000,-2263.39516467,0.00028718,2]
[426528822,1782541832000,-525.87,0.00028747,2]
[426528824,1782541832000,-478.33766771,0.00029249,2]
[426528825,1782541832000,-200.0,0.00029346,2]
[426528827,1782541832000,-168.21,0.00029536,2]
[426528826,1782541832000,-279.55,0.00029449,120]
[426528828,1782541832000,-151.26,0.00029993,2]
[426528830,1782541832000,-165.36,0.00030099,2]
[426528829,1782541832000,-199.0,0.0003,120]
[426528831,1782541832000,-684.0,0.00030189,5]
[426528772,1782541832000,-1902.38242282,0.000226,2]
[426528820,1782541832000,-582.3774,0.00028069,14]
[426528804,1782541832000,-5000.0,0.00026591,2]
[426528823,1782541832000,-3803.31,0.00029239,10]
[426528802,1782541832000,-150.99,0.00026591,2]
[426528803,1782541832000,-514.42,0.00026591,2]
[426528775,1782541832000,-2263.39516467,0.00023679,2]
[426528776,1782541832000,-166.66,0.0002388,30]
[426528777,1782541832000,-478.33766771,0.00024004,2]
[426528779,1782541832000,-519.85,0.00024174,2]
[426528778,1782541832000,-463.91293336,0.0002408,2]
[426528780,1782541832000,-166.66,0.00024383,30]
[426528781,1782541832000,-177.23,0.00024658,2]
[426528784,1782541832000,-192.07,0.00024658,2]
[426528769,1782541832000,-529.9039956,0.00022232,2]
[426528787,1782541832000,-1000.0,0.00025211,120]
[426528786,1782541832000,-1000.0,0.00025084,2]
[426528783,1782541832000,-193.38,0.00024658,2]
[426528782,1782541832000,-191.01,0.00024658,2]
[426528788,1782541832000,-1148.93,0.00025285,2]
[426528791,1782541832000,-2263.39516467,0.00025359,2]
[426528785,1782541832000,-166.66,0.00024886,30]
[426528798,1782541832000,-165.59,0.00025968,2]
[426528795,1782541832000,-168.21,0.00025844,2]
[426528794,1782541832000,-150.0,0.00025444,2]
[426528797,1782541832000,-200.0,0.0002594,2]
[426528801,1782541832000,-166.66,0.00026394,30]
[426528799,1782541832000,-5000.0,0.00026011,2]
[426528796,1782541832000,-166.66,0.00025891,30]
[426528792,1782541832000,-166.66,0.00025389,30]
[426528789,1782541832000,-1215.65,0.00025317,2]
[426528800,1782541832000,-166.98,0.00026146,2]
[426528790,1782541832000,-172.85,0.00025353,120]
[426528842,1782541833000,-1000.0,0.00031,7]
[426528850,1782541833000,-259.36786558,0.00032191,2]
[426528839,1782541833000,-621.52615298,0.00030598,5]
[426528832,1782541833000,-2263.39516467,0.00030397,2]
[426528836,1782541833000,-674.0,0.00030598,5]
[426528834,1782541833000,-254.343,0.00030584,26]
[426528835,1782541833000,-2376.752,0.00030584,26]
[426528837,1782541833000,-680.0,0.00030598,5]
[426528833,1782541833000,-675.0,0.00030552,5]
[426528840,1782541833000,-683.0,0.00030598,5]
[426528838,1782541833000,-49.47384702,0.00030598,5]
[426528844,1782541833000,-151.26,0.00031493,2]
[426528852,1782541833000,-500.0,0.00032191,2]
[426528843,1782541833000,-168.21,0.00031381,2]
[426528846,1782541833000,-478.33766771,0.00031871,2]
[426528856,1782541833000,-60195.19327359,0.00032192,2]
[426528855,1782541833000,-353.55484559,0.00032191,2]
[426528854,1782541833000,-500.0,0.00032191,2]
[426528851,1782541833000,-500.0,0.00032191,2]
[426528853,1782541833000,-178.3532459,0.00032191,2]
[426528845,1782541833000,-5323.0,0.00031708,5]
[426528847,1782541833000,-2263.39516467,0.00032077,2]
[426528848,1782541833000,-2500.0,0.00032092,2]
[426528841,1782541833000,-463.91293336,0.00030603,2]
[426528849,1782541833000,-172.8628918,0.00032191,2]
[426528866,1782541838000,-940.929,0.00031416,2]
[426528864,1782541838000,-188.87,0.00024658,2]
[426528868,1782541838000,-902.07,0.00032192,2]
[426528867,1782541838000,-222711.64097609,0.00032192,2]
[426528865,1782541838000,-177.22907949,0.00026698,2]
[426528870,1782541838000,-1170.77349121,0.00032192,2]
[426528872,1782541838000,-777.2934415,0.00032192,2]
[426528871,1782541838000,-904.08623216,0.00032192,2]
[426528873,1782541838000,-5631.31631505,0.00032192,2]
[426528874,1782541838000,-568.13833919,0.00032192,2]
[426528869,1782541838000,-1886.42365071,0.00032192,2]
[426528919,1782541840000,-11051.01957902,0.00026938,120]
[426528918,1782541840000,-38948.98042098,0.00026938,120]
[426528922,1782541840000,-17923.38936501,0.00032192,2]
[426528921,1782541840000,-20718.632556,0.00026938,120]
[426528920,1782541840000,-347.339344,0.00026938,120]
[426528932,1782541843000,-742.5,0.00032192,2]
[426528931,1782541843000,-767.65027103,0.00032192,2]
[426528925,1782541843000,-2928.94299817,0.00032182,10]
[426528924,1782541843000,-653.83475851,0.00032182,10]
[426528926,1782541843000,-905.14145537,0.00032192,2]
[426528923,1782541843000,-1453.78224332,0.00032182,10]
[426528929,1782541843000,-1324.41,0.00032192,2]
[426528927,1782541843000,-9015.64423464,0.00032192,2]
[426528930,1782541843000,-61.74929814,0.00032192,2]
[426528928,1782541843000,-1208.68179918,0.00032192,2]
[426528945,1782541846000,-27306.9462838,0.00032192,2]
[426528943,1782541846000,-11892.06579996,0.00032192,2]
[426528944,1782541846000,-624.06,0.00032192,2]
[426528947,1782541871000,304.80840014,0.00037298,120]
[426528948,1782541888000,259403.4254,0.000227,120]
[426528952,1782542091000,503.62793593,0.00037298,120]
[426528951,1782542091000,500.0,0.00037298,120]
[426528953,1782542121000,500.0,0.00037298,120]
[426528955,1782542165000,248.4886351,0.00037298,120]
[426528956,1782542166000,3127.80107392,0.00037298,120]
[426528957,1782542633000,19172.8,0.00037297,120]
[426528958,1782542668000,1500000.0,0.000228,120]
[426528960,1782542691000,500.0,0.00037297,120]
[426528959,1782542691000,500.0,0.00037297,120]
[426528964,1782542692000,500.0,0.00037297,120]
[426528963,1782542692000,500.0,0.00037297,120]
[426528962,1782542692000,500.0,0.00037297,120]
[426528961,1782542692000,500.0,0.00037297,120]
[426528965,1782542925000,500.0,0.00037297,120]
[426528975,1782542945000,-151.0,0.00013697,2]
[426528973,1782542945000,-151.0,0.00013697,2]
[426528976,1782542945000,-150.0,0.00013697,2]
[426528974,1782542945000,-151.0,0.00013697,2]
[426528972,1782542945000,-151.0,0.00013697,2]
[426528969,1782542945000,-320.66,0.00013355,2]
[426528971,1782542945000,-152.0,0.00013697,2]
[426528970,1782542945000,-279.5710843,0.00013597,2]
[426528966,1782542945000,-320.66,0.00013012,2]
[426528967,1782542945000,-150.0,0.00013055,2]
[426528968,1782542945000,-320.66,0.00013098,2]
[426528980,1782542945000,-150.0,0.00013697,2]
[426528978,1782542945000,-150.0,0.00013697,2]
[426528977,1782542945000,-152.0,0.00013697,2]
[426528979,1782542945000,-150.0,0.00013697,2]
[426528992,1782542945000,-107.49079385,0.00013698,2]
[426528991,1782542945000,-150.0,0.00013698,2]
[426528990,1782542945000,-151.0,0.00013698,2]
[426528986,1782542945000,-151.0,0.00013698,2]
[426528988,1782542945000,-152.0,0.00013698,2]
[426528989,1782542945000,-151.0,0.00013698,2]
[426528982,1782542945000,-151.0,0.00013697,2]
[426528983,1782542945000,-151.0,0.00013697,2]
[426528984,1782542945000,-500.0,0.00013698,2]
[426528981,1782542945000,-151.0,0.00013697,2]
[426528985,1782542945000,-500.0,0.00013698,2]
[426528987,1782542945000,-152.0,0.00013698,2]
[426529020,1782543032000,-250.0,0.00014,2]
[426529015,1782543032000,-151.0,0.00013698,2]
[426529016,1782543032000,-600.0,0.00013719,2]
[426529017,1782543032000,-300.0,0.0001374,2]
[426529018,1782543032000,-320.66,0.00013783,2]
[426529019,1782543032000,-600.0,0.00013851,2]
[426529029,1782543032000,-600.0,0.00014313,2]
[426529021,1782543032000,-300.0,0.00014035,2]
[426529024,1782543032000,-200.0,0.00014313,2]
[426529023,1782543032000,-279.81166212,0.00014313,2]
[426529025,1782543032000,-200.0,0.00014313,2]
[426529013,1782543032000,-152.0,0.00013698,2]
[426529027,1782543032000,-300.0,0.00014313,2]
[426529022,1782543032000,-256.10668052,0.00014313,2]
[426529011,1782543032000,-151.0,0.00013698,2]
[426529004,1782543032000,-151.0,0.00013698,2]
[426529010,1782543032000,-153.0,0.00013698,2]
[426529028,1782543032000,-300.0,0.00014313,2]
[426528996,1782543032000,-42.50920615,0.00013698,2]
[426528998,1782543032000,-149.49079385,0.00013698,2]
[426528997,1782543032000,-152.0,0.00013698,2]
[426528999,1782543032000,-0.50920615,0.00013698,2]
[426529002,1782543032000,-150.0,0.00013698,2]
[426529012,1782543032000,-153.0,0.00013698,2]
[426529000,1782543032000,-151.0,0.00013698,2]
[426529005,1782543032000,-150.0,0.00013698,2]
[426529003,1782543032000,-152.0,0.00013698,2]
[426529006,1782543032000,-151.0,0.00013698,2]
[426529008,1782543032000,-150.0,0.00013698,2]
[426529009,1782543032000,-151.0,0.00013698,2]
[426529007,1782543032000,-151.0,0.00013698,2]
[426529001,1782543032000,-150.0,0.00013698,2]
[426529026,1782543032000,-500.0,0.00014313,2]
[426529014,1782543032000,-150.0,0.00013698,2]
[426529031,1782543032000,-320.66,0.00014382,2]
[426529049,1782543032000,-1000.0,0.00016205,2]
[426529052,1782543032000,-1000.0,0.00016205,2]
[426529051,1782543032000,-1000.0,0.00016205,2]
[426529053,1782543032000,-1000.0,0.00016205,2]
[426529056,1782543032000,-1000.0,0.00016205,2]
[426529055,1782543032000,-1000.0,0.00016205,2]
[426529050,1782543032000,-1000.0,0.00016205,2]
[426529058,1782543032000,-1000.0,0.00016205,2]
[426529059,1782543032000,-1000.0,0.00016205,2]
[426529060,1782543032000,-1000.0,0.00016205,2]
[426529061,1782543032000,-1000.0,0.00016205,2]
[426529062,1782543032000,-1000.0,0.00016205,2]
[426529063,1782543032000,-1000.0,0.00016205,2]
[426529030,1782543032000,-359.02,0.00014382,2]
[426529057,1782543032000,-1000.0,0.00016205,2]
[426529048,1782543032000,-1000.0,0.00016205,2]
[426529054,1782543032000,-1000.0,0.00016205,2]
[426529047,1782543032000,-1000.0,0.00016205,2]
[426529044,1782543032000,-1000.0,0.00016205,2]
[426529034,1782543032000,-250.0,0.00015068,2]
[426529032,1782543032000,-255.0,0.0001482,2]
[426529036,1782543032000,-600.0,0.00015068,2]
[426529037,1782543032000,-433.0,0.00016039,2]
[426529042,1782543032000,-152.0,0.00016205,2]
[426529035,1782543032000,-300.0,0.00015068,2]
[426529041,1782543032000,-151.0,0.00016205,2]
[426529033,1782543032000,-600.0,0.00015067,2]
[426529039,1782543032000,-34419.55443347,0.00016167,2]
[426529064,1782543032000,-1000.0,0.00016205,2]
[426529040,1782543032000,-150.0,0.00016205,2]
[426529043,1782543032000,-152.0,0.00016205,2]
[426529045,1782543032000,-1000.0,0.00016205,2]
[426529046,1782543032000,-1000.0,0.00016205,2]
[426529038,1782543032000,-252630.1964,0.00016105,2]
[426529085,1782543033000,-743.83,0.00021273,2]
[426529083,1782543033000,-1784.85546021,0.00021009,2]
[426529087,1782543033000,-164.66,0.00021989,3]
[426529086,1782543033000,-622.9,0.00021889,2]
[426529089,1782543033000,-345.088,0.000223,2]
[426529088,1782543033000,-895.32066063,0.00022263,2]
[426529090,1782543033000,-4473.43874839,0.000223,2]
[426529092,1782543033000,-168.21,0.00022443,2]
[426529095,1782543033000,-345.088,0.000225,2]
[426529094,1782543033000,-332.39,0.00022466,2]
[426529093,1782543033000,-600.28,0.00022466,2]
[426529097,1782543033000,-500.80717316,0.00022522,2]
[426529096,1782543033000,-4473.43874839,0.000225,2]
[426529098,1782543033000,-345.088,0.000227,2]
[426529101,1782543033000,-4473.43874839,0.000229,2]
[426529091,1782543033000,-211.91966717,0.000223,2]
[426529084,1782543033000,-1973.59,0.00021189,2]
[426529065,1782543033000,-1000.0,0.00016205,2]
[426529082,1782543033000,-150.0,0.00020728,2]
[426529104,1782543033000,-4473.43874839,0.000232,2]
[426529067,1782543033000,-151.95,0.00016712,2]
[426529066,1782543033000,-1000.0,0.00016205,2]
[426529069,1782543033000,-1785.49,0.00017808,2]
[426529068,1782543033000,-429.0,0.00017354,2]
[426529072,1782543033000,-168.21,0.00019237,2]
[426529070,1782543033000,-228.60935438,0.00018055,2]
[426529081,1782543033000,-1973.59,0.00020708,2]
[426529071,1782543033000,-4699.29610047,0.00019162,2]
[426529073,1782543033000,-1973.59,0.00019263,2]
[426529076,1782543033000,-1973.59,0.00019744,2]
[426529075,1782543033000,-622.9,0.00019457,2]
[426529077,1782543033000,-150.0,0.00019799,2]
[426529079,1782543033000,-1973.59,0.00020226,2]
[426529080,1782543033000,-1920.51095048,0.00020596,2]
[426529078,1782543033000,-3705.36641069,0.00020038,2]
[426529074,1782543033000,-1538.12,0.00019293,2]
[426529100,1782543033000,-345.088,0.000229,2]
[426529116,1782543033000,-159.44588927,0.00024921,2]
[426529099,1782543033000,-4473.43874839,0.000227,2]
[426529125,1782543033000,-500.6527427,0.00024973,2]
[426529126,1782543033000,-500.0,0.00024973,2]
[426529129,1782543033000,-500.0,0.00024973,2]
[426529124,1782543033000,-161.31685485,0.00024973,2]
[426529127,1782543033000,-500.0,0.00024973,2]
[426529131,1782543033000,-303.83455391,0.00024973,2]
[426529130,1782543033000,-500.0,0.00024973,2]
[426529102,1782543033000,-195.7,0.000229,2]
[426529133,1782543033000,-500.0,0.00024973,2]
[426529135,1782543033000,-500.0,0.00024973,2]
[426529136,1782543033000,-500.0,0.00024973,2]
[426529137,1782543033000,-500.0,0.00024973,2]
[426529134,1782543033000,-500.0,0.00024973,2]
[426529139,1782543033000,-500.0,0.00024973,2]
[426529138,1782543033000,-500.0,0.00024973,2]
[426529140,1782543033000,-49098.02225321,0.00024974,2]
[426529132,1782543033000,-500.0,0.00024973,2]
[426529128,1782543033000,-368.37773994,0.00024973,2]
[426529122,1782543033000,-500.0,0.00024973,2]
[426529119,1782543033000,-500.0,0.00024973,2]
[426529103,1782543033000,-345.088,0.000232,2]
[426529106,1782543033000,-4473.43874839,0.000236,2]
[426529105,1782543033000,-4473.43874839,0.000234,2]
[426529107,1782543033000,-4473.43874839,0.000239,2]
[426529109,1782543033000,-4473.43874839,0.000241,2]
[426529108,1782543033000,-500.0,0.00023945,2]
[426529123,1782543033000,-648.15807598,0.00024973,2]
[426529110,1782543033000,-4473.43874839,0.000243,2]
[426529111,1782543033000,-622.9,0.00024321,2]
[426529113,1782543033000,-500.0,0.00024357,2]
[426529114,1782543033000,-177.23,0.00024658,2]
[426529117,1782543033000,-500.0,0.00024973,2]
[426529115,1782543033000,-233.17,0.00024658,2]
[426529118,1782543033000,-500.0,0.00024973,2]
[426529120,1782543033000,-500.0,0.00024973,2]
[426529121,1782543033000,-500.0,0.00024973,2]
[426529112,1782543033000,-500.0,0.00024357,2]
[426529150,1782543038000,-209.10059154,0.00022699,2]
[426529146,1782543038000,-216.51184279,0.00016671,2]
[426529149,1782543038000,-500.0,0.00022699,2]
[426529147,1782543038000,-258.14579747,0.00022699,2]
[426529152,1782543038000,-500.0,0.00022699,2]
[426529151,1782543038000,-599.44137449,0.00022699,2]
[426529158,1782543038000,-568.13833919,0.00024974,2]
[426529153,1782543038000,-153.86369475,0.00022699,2]
[426529159,1782543038000,-2062.29210317,0.00024974,2]
[426529157,1782543038000,-11558.58815805,0.00024974,2]
[426529148,1782543038000,-500.0,0.00022699,2]
[426529156,1782543038000,-678.9113006,0.00024974,2]
[426529155,1782543038000,-142.99526291,0.00024974,2]
[426529154,1782543038000,-232.43,0.00024658,2]
[426529220,1782543040000,-2492.52889364,0.00024974,2]
[426529232,1782543046000,-320.7375,0.000223,2]
[426529259,1782543047000,-381.0,0.000273,15]
[426529252,1782543047000,-1852.42,0.00026388,2]
[426529250,1782543047000,-150.99,0.00025786,2]
[426529251,1782543047000,-166.66,0.00026156,30]
[426529249,1782543047000,-168.21,0.00025649,2]
[426529248,1782543047000,-166.66,0.00025617,30]
[426529247,1782543047000,-200.0,0.00025564,2]
[426529245,1782543047000,-324.30939278,0.00025087,2]
[426529243,1782543047000,-17044.76368923,0.00024974,2]
[426529246,1782543047000,-165.47,0.00025383,2]
[426529242,1782543047000,-536.78891101,0.000229,2]
[426529241,1782543047000,-536.78891101,0.000227,2]
[426529240,1782543047000,-147.12220479,0.000225,2]
[426529239,1782543047000,-389.66670622,0.000225,2]
[426529238,1782543047000,-216.05141101,0.000223,2]
[426529244,1782543047000,-200.0,0.00025021,2]
[426529257,1782543047000,-500.0,0.00026878,2]
[426529256,1782543047000,-607.82,0.00026873,2]
[426529253,1782543047000,-166.66,0.00026696,30]
[426529274,1782543047000,-661.992163,0.00030585,5]
[426529273,1782543047000,-669.0,0.00030585,5]
[426529272,1782543047000,-1901.402,0.00030583,26]
[426529271,1782543047000,-203.474,0.00030583,26]
[426529270,1782543047000,-172.88,0.00030213,120]
[426529267,1782543047000,-2575.81,0.0002908,2]
[426529269,1782543047000,-159.44588923,0.00029799,2]
[426529266,1782543047000,-168.21,0.00028855,2]